bitfinex/quotes_BTCUSD_20230403
["timestamp","ask_amount","ask_price","bid_price","bid_amount"]
[1680537116181,0.96632,28043.0,28042.0,0.0209]
[1680537116725,0.98420276,28043.0,28042.0,0.0209]
[1680537117004,0.96632,28043.0,28042.0,0.0229]
[1680537117271,0.96632,28043.0,28042.0,0.0209]
[1680537117615,1.28873054,28043.0,28042.0,0.0209]
[1680537117887,0.975234,28043.0,28042.0,0.0209]
[1680537118434,0.890634,28043.0,28042.0,0.0209]
[1680537118695,0.904634,28043.0,28042.0,0.0229]
[1680537119032,0.890634,28043.0,28042.0,0.0209]
[1680537119318,1.21881282,28043.0,28042.0,0.0229]
[1680537119649,1.23669558,28043.0,28042.0,0.0229]
[1680537119912,1.20481282,28043.0,28042.0,0.0209]
[1680537120391,1.21881282,28043.0,28042.0,0.0229]
[1680537120670,2.5023153,28043.0,28042.0,0.0229]
[1680537121227,2.4883153,28043.0,28042.0,0.0209]
[1680537121546,2.5023153,28043.0,28042.0,0.0209]
[1680537121813,2.5023153,28043.0,28042.0,0.0229]
[1680537122082,1.21881282,28043.0,28042.0,0.0229]
[1680537122545,1.20481282,28043.0,28042.0,0.0209]
[1680537122546,2.50232287,28043.0,28042.0,0.0229]
[1680537122850,2.48832287,28043.0,28042.0,0.0209]
[1680537123126,2.50232287,28043.0,28042.0,0.0229]
[1680537123402,1.21881282,28043.0,28042.0,0.0229]
[1680537123682,2.50232842,28043.0,28042.0,0.0229]
[1680537123969,1.20481282,28043.0,28042.0,0.0209]
[1680537124470,2.48831597,28043.0,28042.0,0.0209]
[1680537124740,1.20481282,28043.0,28042.0,0.0209]
[1680537124974,1.20481282,28043.0,28042.0,0.0229]
[1680537124975,1.21881282,28043.0,28042.0,0.0229]
[1680537125209,1.20481282,28043.0,28042.0,0.0209]
[1680537125456,1.21881282,28043.0,28042.0,0.0229]
[1680537125687,1.20481282,28043.0,28042.0,0.0209]
[1680537127080,1.21881282,28043.0,28042.0,0.0229]
[1680537127788,2.48832435,28043.0,28042.0,0.0209]
[1680537128009,2.50232435,28043.0,28042.0,0.0229]
[1680537128277,2.48832435,28043.0,28042.0,0.0209]
[1680537128503,2.50232435,28043.0,28042.0,0.0229]
[1680537128966,2.52912111,28043.0,28042.0,0.0229]
[1680537129195,2.50232435,28043.0,28042.0,0.0229]
[1680537129436,2.48832435,28043.0,28042.0,0.0209]
[1680537129669,2.50232435,28043.0,28042.0,0.0229]
[1680537129900,2.50620711,28043.0,28042.0,0.0209]
[1680537130149,2.52912111,28043.0,28042.0,0.0229]
[1680537130382,2.51512111,28043.0,28042.0,0.0209]
[1680537130608,2.52912111,28043.0,28042.0,0.0229]
[1680537130835,2.51512111,28043.0,28042.0,0.0209]
[1680537131067,2.52912111,28043.0,28042.0,0.0229]
[1680537131303,2.51512111,28043.0,28042.0,0.0209]
[1680537132668,2.5632779,28043.0,28042.0,0.01948432]
[1680537132884,2.83560503,28043.0,28042.0,0.01948432]
[1680537133116,2.82160503,28043.0,28042.0,0.01748432]
[1680537133363,2.83560503,28043.0,28042.0,0.01948432]
[1680537133591,2.8379145,28043.0,28042.0,0.01245104]
[1680537133831,2.8519145,28043.0,28042.0,0.01445104]
[1680537134072,3.05059397,28043.0,28042.0,0.01245104]
[1680537134307,2.93700888,28043.0,28042.0,0.01445104]
[1680537134536,2.88654262,28043.0,28042.0,0.01445104]
[1680537134758,2.80144824,28043.0,28042.0,0.01445104]
[1680537135224,2.78744824,28043.0,28042.0,0.01245104]
[1680537135463,2.78744824,28043.0,28042.0,0.01445104]
[1680537135464,2.80144824,28043.0,28042.0,0.01445104]
[1680537135700,2.78744824,28043.0,28042.0,0.01245104]
[1680537135957,2.80144824,28043.0,28042.0,0.01445104]
[1680537136180,2.78744824,28043.0,28042.0,0.01245104]
[1680537136646,2.80144824,28043.0,28042.0,0.01445104]
[1680537136888,2.78744824,28043.0,28042.0,0.01245104]
[1680537137119,2.80144824,28043.0,28042.0,0.01445104]
[1680537137568,3.98654262,28043.0,28042.0,0.01445104]
[1680537137816,2.88654262,28043.0,28042.0,0.01445104]
[1680537138058,2.78744824,28043.0,28042.0,0.01245104]
[1680537138277,2.78744824,28043.0,28042.0,0.01445104]
[1680537138278,2.80144824,28043.0,28042.0,0.01445104]
[1680537138520,2.78744824,28043.0,28042.0,0.01245104]
[1680537138738,2.80144824,28043.0,28042.0,0.01445104]
[1680537138975,2.78744824,28043.0,28042.0,0.01245104]
[1680537139200,2.80144824,28043.0,28042.0,0.01445104]
[1680537139418,2.78744824,28043.0,28042.0,0.01245104]
[1680537139688,2.80144824,28043.0,28042.0,0.01445104]
[1680537139909,2.78744824,28043.0,28042.0,0.01245104]
[1680537140360,2.87254262,28043.0,28042.0,0.01245104]
[1680537140586,2.78744824,28043.0,28042.0,0.01245104]
[1680537140810,2.80144824,28043.0,28042.0,0.01445104]
[1680537141048,2.78744824,28043.0,28042.0,0.01245104]
[1680537141274,2.88654262,28043.0,28042.0,0.01445104]
[1680537141518,2.87254262,28043.0,28042.0,0.01245104]
[1680537141783,2.88654262,28043.0,28042.0,0.01445104]
[1680537142268,2.94024262,28043.0,28042.0,0.01245104]
[1680537142502,2.86914824,28043.0,28042.0,0.01445104]
[1680537142728,2.94024262,28043.0,28042.0,0.01245104]
[1680537142962,4.04024262,28043.0,28042.0,0.01245104]
[1680537143190,4.08273333,28043.0,28042.0,0.01245104]
[1680537143677,4.09673333,28043.0,28042.0,0.01445104]
[1680537143907,4.06485057,28043.0,28042.0,0.01245104]
[1680537144131,4.07885057,28043.0,28042.0,0.01445104]
[1680537144368,4.03646664,28043.0,28042.0,0.01445104]
[1680537147831,3.95126548,28043.0,28042.0,0.01445104]
[1680537148788,4.03646664,28043.0,28042.0,0.01445104]
[1680537149049,3.67893835,28043.0,28042.0,0.01445104]
[1680537149314,3.76413951,28043.0,28042.0,0.01445104]
[1680537149577,3.8917246,28043.0,28042.0,0.01445104]
[1680537150099,3.76413951,28043.0,28042.0,0.01445104]
[1680537151409,3.80652344,28043.0,28042.0,0.01445104]
[1680537152477,2.25652344,28043.0,28042.0,0.01445104]
[1680537152741,2.45652344,28043.0,28042.0,0.01445104]
[1680537152979,2.25652344,28043.0,28042.0,0.01445104]
[1680537153272,2.50652344,28043.0,28042.0,0.01445104]
[1680537153766,2.50652344,28043.0,28042.0,0.00945104]
[1680537154032,2.87735117,28043.0,28042.0,0.00945104]
[1680537154308,3.38451608,28043.0,28042.0,0.00945104]
[1680537155558,3.17098141,28043.0,28042.0,0.00945104]
[1680537157402,3.30811608,28043.0,28042.0,0.00945104]
[1680537158993,3.13728835,28043.0,28042.0,0.00945104]
[1680537159212,3.30811692,28043.0,28042.0,0.00945104]
[1680537159881,3.13728835,28043.0,28042.0,0.00945104]
[1680537160094,2.92393368,28043.0,28042.0,0.00945104]
[1680537160525,2.92375368,28043.0,28042.0,0.00945104]
[1680537160790,2.92375368,28043.0,28041.0,0.0209]
[1680537160791,2.03872321,28042.0,28041.0,0.0209]
[1680537161018,0.4,28039.0,28038.0,0.00417423]
[1680537161950,3.0796149,28038.0,28037.0,0.020435]
[1680537162400,3.9115149,28038.0,28037.0,0.020435]
[1680537162616,4.1181949,28038.0,28037.0,0.020435]
[1680537163111,3.9470149,28038.0,28037.0,0.020435]
[1680537163484,4.16043173,28038.0,28037.0,0.020435]
[1680537163698,3.9470149,28038.0,28037.0,0.020435]
[1680537164536,5.2998394,28038.0,28037.0,0.020435]
[1680537164742,5.2712344,28038.0,28037.0,0.020435]
[1680537165173,5.86111899,28038.0,28037.0,0.020435]
[1680537165387,7.78728243,28038.0,28037.0,0.020435]
[1680537165604,5.52713308,28038.0,28037.0,0.020435]
[1680537165804,5.60003308,28038.0,28037.0,0.020435]
[1680537166022,5.62721308,28038.0,28037.0,0.020435]
[1680537166405,5.60021308,28038.0,28037.0,0.020435]
[1680537166633,5.62703308,28038.0,28037.0,0.00107309]
[1680537167146,1.37927321,28037.0,28036.0,0.0209]
[1680537167360,4.17839703,28037.0,28036.0,0.0209]
[1680537167578,4.30766174,28037.0,28036.0,0.0209]
[1680537168253,4.33466174,28037.0,28036.0,0.0209]
[1680537168485,4.15516174,28037.0,28036.0,0.0209]
[1680537168710,4.18216174,28037.0,28036.0,0.0209]
[1680537169353,4.15516174,28037.0,28036.0,0.0209]
[1680537169798,4.18216174,28037.0,28036.0,0.0209]
[1680537170745,4.39517256,28037.0,28036.0,0.0209]
[1680537171442,4.91269174,28037.0,28036.0,0.0209]
[1680537171702,4.94651111,28037.0,28036.0,0.0209]
[1680537171970,4.94651111,28037.0,28036.0,0.01187838]
[1680537172228,4.73436174,28037.0,28036.0,0.01187838]
[1680537172486,4.70736174,28037.0,28036.0,0.01181838]
[1680537172762,4.70736174,28037.0,28036.0,0.00269861]
[1680537173044,5.1594665,28037.0,28036.0,0.00269861]
[1680537173331,4.94731713,28037.0,28036.0,0.00269861]
[1680537173886,6.2594665,28037.0,28036.0,0.00269861]
[1680537174697,5.65908197,28037.0,28036.0,0.00269861]
[1680537174961,5.4469326,28037.0,28036.0,0.00269861]
[1680537175434,5.61725148,28037.0,28036.0,0.00269861]
[1680537175713,4.30429609,28037.0,28036.0,0.00269861]
[1680537176225,4.36515148,28037.0,28036.0,0.00269861]
[1680537177258,4.15219609,28037.0,28036.0,0.00269861]
[1680537178585,4.07963057,28037.0,28036.0,0.00269861]
[1680537178837,4.07953472,28037.0,28036.0,0.00269861]
[1680537179109,3.86667518,28037.0,28036.0,0.00269861]
[1680537179370,4.07953455,28037.0,28036.0,0.00269861]
[1680537180456,4.0800644,28037.0,28036.0,0.00269861]
[1680537180717,3.86667518,28037.0,28036.0,0.00269861]
[1680537185316,4.07950353,28037.0,28036.0,0.00269861]
[1680537187357,4.00330353,28037.0,28036.0,0.00269861]
[1680537188088,5.92955494,28037.0,28036.0,0.00269861]
[1680537188563,4.00330353,28037.0,28036.0,0.00269861]
[1680537188814,5.92955658,28037.0,28036.0,0.00269861]
[1680537190904,0.4,28033.0,28032.0,0.000155]
[1680537191182,1.72940453,28033.0,28032.0,0.00030407]
[1680537191445,1.32940453,28033.0,28032.0,0.00030407]
[1680537191722,1.32940453,28033.0,28032.0,0.15200407]
[1680537192256,1.35640453,28033.0,28032.0,0.15200407]
[1680537192527,1.32940453,28033.0,28032.0,0.15200407]
[1680537192766,1.49813488,28033.0,28032.0,0.15200407]
[1680537193016,1.79813488,28033.0,28032.0,0.15200407]
[1680537194224,1.35540453,28033.0,28032.0,0.15200407]
[1680537194463,0.026,28033.0,28032.0,0.50440407]
[1680537197144,0.075381,28033.0,28032.0,0.20030407]
[1680537197385,0.09222114,28033.0,28032.0,0.20030407]
[1680537197634,0.09222114,28033.0,28032.0,0.00014907]
[1680537197872,1.3762926,28033.0,28032.0,0.00014907]
[1680537198086,1.6762926,28033.0,28032.0,0.00014907]
[1680537198306,1.6762926,28033.0,28032.0,0.00030407]
[1680537198560,2.16143421,28033.0,28032.0,0.00030407]
[1680537198792,1.73543421,28033.0,28032.0,0.000155]
[1680537199013,2.16243421,28033.0,28032.0,0.000155]
[1680537199225,2.13543421,28033.0,28032.0,0.000155]
[1680537199431,2.26314663,28033.0,28032.0,0.000155]
[1680537200086,2.17800502,28033.0,28032.0,0.000155]
[1680537200299,2.37528903,28033.0,28032.0,0.000155]
[1680537200509,2.3485144,28033.0,28032.0,0.000155]
[1680537200723,2.3755144,28033.0,28032.0,0.000155]
[1680537200939,2.3485144,28033.0,28032.0,0.000155]
[1680537201160,2.3755144,28033.0,28032.0,0.000155]
[1680537201368,1.9755144,28033.0,28032.0,0.000155]
[1680537201576,2.3485144,28033.0,28032.0,0.000155]
[1680537202000,2.3755144,28033.0,28032.0,0.000155]
[1680537202219,2.3485144,28033.0,28032.0,0.000155]
[1680537202429,2.85477864,28033.0,28032.0,0.000155]
[1680537203119,2.88177864,28033.0,28032.0,0.000155]
[1680537203331,2.85477864,28033.0,28032.0,0.000155]
[1680537203553,2.88177864,28033.0,28032.0,0.000155]
[1680537203784,2.85477864,28033.0,28032.0,0.000155]
[1680537203998,2.88177864,28033.0,28032.0,0.000155]
[1680537204212,2.85477864,28033.0,28032.0,0.000155]
[1680537204430,2.88177864,28033.0,28032.0,0.000155]
[1680537204866,0.45,28032.0,28031.0,0.016055]
[1680537205095,2.6255629,28032.0,28031.0,0.016055]
[1680537206398,2.6205629,28032.0,28031.0,0.016055]
[1680537206611,2.6475629,28032.0,28031.0,0.016055]
[1680537206897,2.4339475,28032.0,28031.0,0.016055]
[1680537208968,2.4161115,28032.0,28031.0,0.016055]
[1680537211180,2.4162915,28032.0,28031.0,0.016055]
[1680537211396,2.4161715,28032.0,28031.0,0.016055]
[1680537211614,2.4161115,28032.0,28031.0,0.016055]
[1680537212044,2.3891115,28032.0,28031.0,0.016055]
[1680537212260,2.4161115,28032.0,28031.0,0.016055]
[1680537212740,2.3891115,28032.0,28031.0,0.016055]
[1680537212992,2.4071935,28032.0,28031.0,0.016055]
[1680537213194,2.07723214,28032.0,28031.0,0.016055]
[1680537213857,2.08615014,28032.0,28031.0,0.016055]
[1680537219665,2.53615014,28032.0,28031.0,0.016055]
[1680537221381,2.7920601,28032.0,28031.0,0.016055]
[1680537221612,2.89067835,28032.0,28031.0,0.016055]
[1680537222463,2.97537835,28032.0,28031.0,0.016055]
[1680537224251,3.24707835,28032.0,28031.0,0.016055]
[1680537224455,3.27407835,28032.0,28031.0,0.016055]
[1680537224674,3.24707835,28032.0,28031.0,0.016055]
[1680537224900,3.54787107,28032.0,28031.0,0.016055]
[1680537225330,2.86031307,28032.0,28031.0,0.016055]
[1680537225543,3.69084955,28032.0,28031.0,0.016055]
[1680537225753,4.13038015,28032.0,28031.0,0.016055]
[1680537225962,3.56739482,28032.0,28031.0,0.016055]
[1680537226386,3.61984198,28032.0,28031.0,0.016055]
[1680537227032,4.05330108,28032.0,28031.0,0.016055]
[1680537227697,4.32630108,28032.0,28031.0,0.016055]
[1680537227968,4.35330108,28032.0,28031.0,0.016055]
[1680537230298,4.11620937,28032.0,28031.0,0.016055]
[1680537230528,4.14320937,28032.0,28031.0,0.016055]
[1680537230912,4.14338937,28032.0,28031.0,0.016055]
[1680537231223,4.14326937,28032.0,28031.0,0.016055]
[1680537231459,4.14320937,28032.0,28031.0,0.016055]
[1680537231839,0.7749,28030.0,28029.0,0.01720089]
[1680537232061,1.65023168,28030.0,28029.0,0.01720089]
[1680537232271,1.82147168,28030.0,28029.0,0.01720089]
[1680537233454,1.67723168,28030.0,28029.0,0.01720089]
[1680537233664,1.65023168,28030.0,28029.0,0.01720089]
[1680537233869,2.20299989,28030.0,28029.0,0.01720089]
[1680537234080,2.03175989,28030.0,28029.0,0.01720089]
[1680537234309,2.0298627,28030.0,28029.0,0.01720089]
[1680537234514,2.2011027,28030.0,28029.0,0.01720089]
[1680537234723,2.1741027,28030.0,28029.0,0.01720089]
[1680537234945,2.0298627,28030.0,28029.0,0.01720089]
[1680537235162,2.2011027,28030.0,28029.0,0.01720089]
[1680537235372,2.0298627,28030.0,28029.0,0.01720089]
[1680537236296,2.1741027,28030.0,28029.0,0.01720089]
[1680537236513,2.0298627,28030.0,28029.0,0.01720089]
[1680537236718,2.2011027,28030.0,28029.0,0.01720089]
[1680537237287,2.0028627,28030.0,28029.0,0.01720089]
[1680537237495,2.2011027,28030.0,28029.0,0.01720089]
[1680537238401,2.45739935,28030.0,28029.0,0.01720089]
[1680537238819,2.45739935,28030.0,28020.0,0.0209]
[1680537238820,0.4,28022.0,28020.0,0.0209]
[1680537239034,0.4,28022.0,28020.0,0.01619823]
[1680537239035,2.12368787,28021.0,28020.0,0.01619823]
[1680537239257,0.4,28016.0,28015.0,0.00271801]
[1680537239513,0.4,28016.0,28014.0,0.01641297]
[1680537239514,0.60152681,28016.0,28014.0,0.01641297]
[1680537239747,0.56216141,28015.0,28014.0,0.01641297]
[1680537239975,0.50374357,28015.0,28014.0,0.01641297]
[1680537240187,0.36184676,28015.0,28014.0,0.01641297]
[1680537240393,0.77300281,28013.0,28010.0,0.00018]
[1680537240622,1.52441101,28013.0,28004.0,0.00012]
[1680537240865,2.24828636,28013.0,28012.0,0.01018367]
[1680537241099,2.46400624,28013.0,28012.0,0.01018367]
[1680537241316,2.39684446,28013.0,28012.0,0.00518367]
[1680537241529,2.81854352,28013.0,28012.0,0.00506367]
[1680537241748,3.31868852,28013.0,28012.0,0.00506367]
[1680537241964,3.14788133,28013.0,28012.0,0.00506367]
[1680537242170,2.97314016,28013.0,28012.0,0.00506367]
[1680537245967,0.15310348,28001.0,28000.0,1.2]
[1680537246182,0.51011148,28001.0,28000.0,1.2]
[1680537246406,0.53711148,28001.0,28000.0,1.2]
[1680537246631,0.54561148,28001.0,28000.0,1.2]
[1680537246841,0.53668348,28001.0,28000.0,1.2]
[1680537247052,0.06118,28001.0,28000.0,1.2]
[1680537247264,0.061,28001.0,28000.0,1.2]
[1680537247476,0.061,28001.0,28000.0,1.0]
[1680537247691,0.034,28001.0,28000.0,1.0]
[1680537247895,0.027,28001.0,28000.0,1.0]
[1680537248124,0.0681713,28001.0,28000.0,1.0]
[1680537248346,0.0951713,28001.0,28000.0,1.0]
[1680537248585,0.0953513,28001.0,28000.0,1.0]
[1680537249918,0.1042793,28001.0,28000.0,1.0]
[1680537250132,0.0953513,28001.0,28000.0,1.0]
[1680537251203,0.0683513,28001.0,28000.0,1.0]
[1680537251403,0.0953513,28001.0,28000.0,1.0]
[1680537252286,0.05938,28001.0,28000.0,1.0]
[1680537256590,0.03238,28001.0,28000.0,1.0]
[1680537256819,0.427,28001.0,28000.0,1.0]
[1680537257041,0.445241,28001.0,28000.0,1.0]
[1680537257262,0.772241,28001.0,28000.0,1.0]
[1680537257475,0.8794651,28001.0,28000.0,1.0]
[1680537259457,0.8524651,28001.0,28000.0,1.0]
[1680537259680,0.8794651,28001.0,28000.0,1.0]
[1680537260132,1.2358651,28001.0,28000.0,1.0]
[1680537260370,1.2628651,28001.0,28000.0,1.0]
[1680537261033,1.2358651,28001.0,28000.0,1.0]
[1680537261270,0.8879651,28001.0,28000.0,1.0]
[1680537261520,0.759742,28001.0,28000.0,1.0]
[1680537261958,0.759742,28001.0,28000.0,1.102557]
[1680537261959,0.02718,28001.0,28000.0,1.102557]
[1680537262191,0.00018,28004.0,28003.0,0.2]
[1680537262416,0.00018,28008.0,28004.0,0.45]
[1680537262647,0.00018,28008.0,28004.0,0.467854]
[1680537263100,6e-05,28008.0,28004.0,0.467854]
[1680537263322,0.027,28008.0,28005.0,0.0845]
[1680537264011,0.00018,28009.0,28005.0,0.102353]
[1680537264269,0.00018,28012.0,28010.0,0.2]
[1680537264502,0.4,28017.0,28011.0,0.46785]
[1680537264503,0.00018,28014.0,28011.0,0.46785]
[1680537264954,0.00018,28015.0,28011.0,0.45]
[1680537265182,0.00018,28015.0,28011.0,0.46785]
[1680537265413,0.00018,28015.0,28011.0,0.46885]
[1680537265694,0.00018,28015.0,28011.0,0.46785]
[1680537265938,0.00618,28015.0,28011.0,0.46885]
[1680537266460,0.00618,28015.0,28011.0,0.55335]
[1680537267025,0.00618,28015.0,28011.0,0.5537451]
[1680537267258,0.006,28015.0,28011.0,0.5536851]
[1680537267958,0.006,28015.0,28014.0,0.2849]
[1680537268199,0.006,28015.0,28014.0,0.338444]
[1680537268444,0.00018,28023.0,28017.0,0.2]
[1680537268690,1.28464971,28024.0,28019.0,0.0848]
[1680537268916,1.28464971,28024.0,28021.0,0.2]
[1680537268917,0.033057,28023.0,28021.0,0.2]
[1680537269155,0.033237,28023.0,28021.0,0.2]
[1680537269393,0.02328001,28025.0,28021.0,0.2]
[1680537269631,1.3197614,28024.0,28021.0,0.2]
[1680537269856,0.034227,28023.0,28021.0,0.2]
[1680537270096,0.02328001,28025.0,28021.0,0.2]
[1680537270323,1.31837462,28024.0,28021.0,0.2]
[1680537270551,0.031994,28023.0,28021.0,0.217843]
[1680537270764,0.06560801,28025.0,28021.0,0.217843]
[1680537270978,0.06560801,28025.0,28022.0,0.0845]
[1680537270979,1.28460427,28024.0,28022.0,0.0845]
[1680537271216,1.28460427,28024.0,28022.0,0.0849]
[1680537271217,1.28478427,28024.0,28022.0,0.0849]
[1680537271427,1.28478427,28024.0,28022.0,0.102743]
[1680537271881,0.034115,28023.0,28022.0,0.102743]
[1680537272345,0.00618,28024.0,28022.0,0.103743]
[1680537272594,1.14049307,28025.0,28022.0,0.103743]
[1680537272595,1.14067307,28025.0,28022.0,0.102743]
[1680537272832,1.14049307,28025.0,28024.0,0.07974923]
[1680537273058,1.17436607,28025.0,28024.0,0.07974923]
[1680537273523,1.14049307,28025.0,28024.0,0.07974923]
[1680537273747,1.14649307,28025.0,28024.0,0.07974923]
[1680537273976,1.18012307,28025.0,28024.0,0.07974923]
[1680537274487,1.17412307,28025.0,28024.0,0.07974923]
[1680537274940,1.31055338,28025.0,28024.0,0.08074923]
[1680537275369,1.1930269,28025.0,28024.0,0.08074923]
[1680537275826,1.1930269,28025.0,28024.0,0.001]
[1680537276515,1.21090966,28025.0,28024.0,0.001]
[1680537276757,1.22339766,28025.0,28024.0,0.001]
[1680537276972,2.50808716,28025.0,28024.0,0.001]
[1680537277193,3.16261537,28025.0,28024.0,0.001]
[1680537277426,3.61261537,28025.0,28024.0,0.001]
[1680537277868,3.61261537,28025.0,28014.0,6e-05]
[1680537277869,0.4,28021.0,28014.0,6e-05]
[1680537278108,0.30904958,28020.0,28014.0,0.00018]
[1680537278335,0.234038,28019.0,28014.0,0.00018]
[1680537278571,0.17452981,28018.0,28011.0,0.017849]
[1680537278796,0.035654,28017.0,28011.0,0.017849]
[1680537279022,0.12025077,28015.0,28010.0,0.09759923]
[1680537279258,0.17632981,28014.0,28010.0,0.07974923]
[1680537279482,0.032497,28013.0,28010.0,0.07974923]
[1680537279756,0.17439381,28013.0,28010.0,0.07974923]
[1680537279983,0.032226,28012.0,28008.0,0.413451]
[1680537280218,0.14189681,28011.0,28006.0,0.07992923]
[1680537280466,0.02621476,28010.0,28006.0,0.07974923]
[1680537280693,0.16811157,28010.0,28006.0,0.07974923]
[1680537280928,0.02639476,28010.0,28006.0,0.09760223]
[1680537281147,0.12043077,28012.0,28006.0,0.07974923]
[1680537281374,0.12043077,28012.0,28006.0,0.09760223]
[1680537281375,0.033188,28011.0,28006.0,0.09760223]
[1680537281602,0.17526481,28011.0,28006.0,0.07974923]
[1680537281832,0.032749,28010.0,28006.0,0.07974923]
[1680537282055,0.032749,28010.0,28005.0,0.52974923]
[1680537282329,0.01748258,28009.0,28005.0,0.54760223]
[1680537282583,0.12043077,28012.0,28005.0,0.54760223]
[1680537282825,0.14189681,28011.0,28005.0,0.017853]
[1680537283055,0.14207681,28011.0,28006.0,0.07974923]
[1680537283297,0.034856,28010.0,28006.0,0.07974923]
[1680537283520,0.033228,28011.0,28006.0,0.07974923]
[1680537283756,0.01329248,28010.0,28006.0,0.07974923]
[1680537284000,0.034073,28009.0,28005.0,0.07974923]
[1680537284249,0.034073,28009.0,28004.0,0.017854]
[1680537284499,0.17596981,28009.0,28005.0,0.07974923]
[1680537284747,0.05331423,28008.0,28005.0,0.07974923]
[1680537284976,0.12025077,28007.0,28003.0,0.3956]
[1680537285198,0.26214758,28007.0,28002.0,0.09778423]
[1680537285427,0.26214758,28007.0,28002.0,0.09760423]
[1680537286160,0.26232758,28007.0,28002.0,0.09760423]
[1680537286399,0.02623276,28006.0,28002.0,0.09760423]
[1680537286623,0.12025077,28007.0,28002.0,0.09760423]
[1680537287305,0.12025077,28007.0,28002.0,0.017855]
[1680537287987,0.00018,28008.0,28003.0,0.0844]
[1680537288216,0.001,28007.0,28004.0,0.053562]
[1680537288916,0.01329248,28010.0,28005.0,0.07974923]
[1680537289142,0.004,28007.0,28006.0,0.053557]
[1680537290118,0.12025077,28011.0,28006.0,0.053557]
[1680537290571,0.00018,28012.0,28006.0,0.053557]
[1680537290783,0.14883377,28013.0,28006.0,0.053557]
[1680537291001,0.14901377,28013.0,28006.0,0.053557]
[1680537291227,0.04490138,28012.0,28006.0,0.053557]
[1680537291459,0.18697819,28012.0,28006.0,0.053557]
[1680537292169,0.00018,28012.0,28006.0,0.053557]
[1680537292406,0.028763,28013.0,28010.0,0.0845]
[1680537292646,0.028763,28013.0,28011.0,0.01785]
[1680537292647,0.028583,28013.0,28011.0,0.01785]
[1680537292888,0.028583,28013.0,28011.0,0.09759923]
[1680537293364,0.028583,28013.0,28012.0,0.0845]
[1680537293602,0.028583,28013.0,28012.0,0.138047]
[1680537293841,0.028583,28013.0,28012.0,0.161609]
[1680537294075,0.053583,28013.0,28012.0,0.161609]
[1680537294301,0.028583,28013.0,28012.0,0.161609]
[1680537294536,0.029583,28013.0,28012.0,0.163609]
[1680537298207,0.029583,28013.0,28012.0,0.079109]
[1680537298429,0.029583,28013.0,28012.0,0.163609]
[1680537300248,0.029583,28013.0,28012.0,0.24335823]
[1680537301145,0.029583,28013.0,28012.0,0.24353823]
[1680537301843,0.02951672,28013.0,28012.0,0.15885823]
[1680537302067,0.02951672,28013.0,28012.0,0.32825823]
[1680537302299,0.02851672,28013.0,28012.0,0.32625823]
[1680537302747,0.03051672,28013.0,28012.0,0.69196879]
[1680537303217,0.03051672,28013.0,28012.0,1.38936879]
[1680537304147,0.03051672,28013.0,28012.0,1.07584879]
[1680537305046,0.002,28013.0,28012.0,1.07584879]
[1680537306414,0.002,28013.0,28012.0,0.172909]
[1680537307094,0.002,28013.0,28012.0,0.149347]
[1680537307316,0.002,28013.0,28012.0,0.028849]
[1680537310254,0.002,28013.0,28012.0,0.10859823]
[1680537310477,0.002,28013.0,28012.0,0.13355323]
[1680537311832,0.002,28013.0,28012.0,0.21825323]
[1680537313652,0.002,28013.0,28012.0,0.19329823]
[1680537314101,0.002,28013.0,28012.0,0.21795023]
[1680537314353,0.002,28013.0,28012.0,0.21295023]
[1680537314594,0.002,28013.0,28012.0,0.21795023]
[1680537318253,0.002,28013.0,28012.0,0.138201]
[1680537318491,0.002,28013.0,28012.0,0.21795023]
[1680537318747,0.002,28013.0,28012.0,0.138201]
[1680537318978,0.002,28013.0,28012.0,0.113549]
[1680537319653,0.12225077,28013.0,28012.0,0.028849]
[1680537319880,0.12243077,28013.0,28012.0,0.028849]
[1680537320324,0.15476677,28013.0,28012.0,0.028849]
[1680537320554,0.15476677,28013.0,28012.0,0.011]
[1680537320777,0.17024345,28013.0,28012.0,0.011]
[1680537321252,0.16824345,28013.0,28009.0,0.46785]
[1680537321484,0.16824345,28013.0,28010.0,0.01785]
[1680537321485,0.12025077,28011.0,28010.0,0.01785]
[1680537321700,0.12043077,28011.0,28010.0,0.01785]
[1680537321917,0.12025077,28011.0,28009.0,0.46785]
[1680537322139,0.12043077,28011.0,28009.0,0.46785]
[1680537322581,0.12043077,28011.0,28010.0,0.001]
[1680537323247,0.13402152,28011.0,28010.0,0.001]
[1680537323479,0.13402152,28011.0,28009.0,0.46785]
[1680537323703,0.13502152,28011.0,28009.0,0.47585]
[1680537323917,0.12043077,28011.0,28009.0,0.46785]
[1680537324140,0.12043077,28011.0,28010.0,0.001]
[1680537324359,0.12043077,28011.0,28009.0,0.45]
[1680537324580,0.12143077,28011.0,28009.0,0.025851]
[1680537324842,0.12043077,28011.0,28009.0,0.017851]
[1680537325069,0.12043077,28011.0,28010.0,0.001]
[1680537325294,0.13247385,28011.0,28010.0,0.001]
[1680537325958,0.13247385,28011.0,28009.0,0.017851]
[1680537326629,0.13247385,28011.0,28008.0,0.45]
[1680537326844,0.12043077,28011.0,28008.0,0.45]
[1680537327059,0.12143077,28011.0,28009.0,0.008]
[1680537327724,0.12043077,28011.0,28008.0,0.467851]
[1680537327948,0.12143077,28011.0,28008.0,0.01]
[1680537328176,0.12125077,28011.0,28008.0,0.027851]
[1680537328417,0.12143077,28011.0,28008.0,0.027851]
[1680537328655,0.12043077,28011.0,28008.0,0.017851]
[1680537328880,0.12143077,28011.0,28009.0,0.008]
[1680537329094,0.033943,28010.0,28009.0,0.008]
[1680537329322,0.034123,28010.0,28009.0,0.025851]
[1680537329547,0.12125077,28011.0,28009.0,0.008]
[1680537329796,0.033736,28010.0,28009.0,0.017851]
[1680537330020,0.00018,28010.0,28008.0,0.01]
[1680537330233,0.12043077,28011.0,28008.0,0.017851]
[1680537330451,0.12143077,28011.0,28009.0,0.008]
[1680537330671,0.032194,28010.0,28007.0,0.017852]
[1680537330909,0.00118,28010.0,28008.0,0.01]
[1680537331135,0.00018,28010.0,28007.0,0.017852]
[1680537331389,0.14204385,28011.0,28009.0,0.008]
[1680537331626,0.033633,28010.0,28006.0,0.167853]
[1680537331857,0.1680145,28010.0,28006.0,0.167853]
[1680537332104,0.12025077,28007.0,28004.0,0.45018]
[1680537332351,0.12025077,28007.0,28005.0,0.017853]